bitfinex/quotes_ETHUSD_20251021
["timestamp","ask_amount","ask_price","bid_price","bid_amount"]
[1761077884993,0.52820478,3956.7,3954.5,0.4744]
[1761077885188,4.255,3956.9,3956.2,2.52764023]
[1761077885422,4.255,3956.9,3955.5,0.2293]
[1761077885637,0.87661217,3957.9,3955.5,0.2293]
[1761077885638,0.63284325,3957.8,3955.5,0.2293]
[1761077885811,2.880094,3957.8,3956.0,2.52777451]
[1761077885991,4.245,3957.9,3955.6,3.00246148]
[1761077885992,4.245,3957.9,3955.6,0.4744]
[1761077886194,4.245,3957.9,3955.7,0.4744]
[1761077886422,3.028094,3957.8,3955.9,2.52786976]
[1761077886725,3.028094,3957.8,3955.7,0.4744]
[1761077886726,4.245,3957.9,3955.7,0.4744]
[1761077886953,4.245,3957.9,3955.9,2.52786976]
[1761077887140,4.245,3957.9,3955.8,0.02527933]
[1761077887141,4.233,3958.0,3955.8,2.52793366]
[1761077887444,4.233,3958.0,3956.9,2.52721713]
[1761077887733,3.271,3957.8,3955.9,0.4744]
[1761077888036,0.2368,3959.5,3957.7,0.2293]
[1761077888333,4.231,3959.8,3957.8,0.02526656]
[1761077888544,4.231,3959.8,3957.8,0.4744]
[1761077888765,4.231,3959.8,3957.9,2.52659238]
[1761077888922,4.231,3959.8,3957.8,0.4744]
[1761077889247,0.2368,3961.2,3957.8,0.4744]
[1761077889421,0.2368,3961.2,3960.2,2.52512417]
[1761077889422,4.225,3961.1,3960.2,2.52512417]
[1761077889627,4.225,3961.1,3960.5,2.52492577]
[1761077889844,4.225,3961.1,3961.0,2.52461499]
[1761077890030,0.001,3962.0,3960.0,2.52525252]
[1761077890333,0.001,3962.0,3959.7,0.4744]
[1761077890334,5.01910995,3961.9,3959.8,2.52538006]
[1761077890643,13.763567,3961.8,3959.3,2.52566936]
[1761077890974,2.06208,3961.3,3959.1,0.7037]
[1761077891262,7.903559,3960.5,3958.2,0.4744]
[1761077891460,0.50688,3960.2,3958.2,0.4744]
[1761077891749,9.923344,3959.9,3958.5,2.52619578]
[1761077891900,13.735393,3959.7,3957.7,0.2293]
[1761077892105,5.285719,3959.4,3957.7,0.2293]
[1761077892305,4.965678,3959.7,3957.8,0.4744]
[1761077892515,4.217,3959.8,3957.9,2.5518583]
[1761077892836,4.217,3959.8,3957.7,0.2293]
[1761077892837,4.217,3959.8,3958.2,2.52640088]
[1761077893003,4.217,3959.8,3958.1,2.52646471]
[1761077893206,4.217,3959.8,3958.8,2.52601392]
[1761077893405,4.217,3959.8,3958.2,0.025264]
[1761077893406,4.217,3959.8,3958.7,2.52607417]
[1761077893619,4.217,3959.8,3958.8,2.52601235]
[1761077893813,4.217,3959.8,3958.7,2.52607687]
[1761077894124,4.217,3959.8,3958.2,2.52640088]
[1761077894323,4.217,3959.8,3958.2,0.4744]
[1761077894744,4.217,3959.8,3958.3,0.02526337]
[1761077894917,4.217,3959.8,3958.9,2.52595052]
[1761077895118,4.217,3959.8,3959.0,0.0252589]
[1761077895328,0.2368,3961.2,3959.0,2.52588986]
[1761077895540,4.196,3961.1,3959.9,2.52531073]
[1761077895842,1.5552,3961.0,3959.1,0.4744]
[1761077896027,4.196,3961.1,3959.1,0.4744]
[1761077896028,4.3109,3961.1,3959.1,0.4744]
[1761077896218,6.38293,3960.8,3959.1,0.4744]
[1761077896418,4.23543,3960.8,3959.1,0.4744]
[1761077896608,2.52486192,3960.7,3959.1,0.4744]
[1761077896812,2.135,3960.6,3959.1,3.00022441]
[1761077897016,0.50688,3960.7,3959.1,0.4744]
[1761077897238,16.450465,3960.4,3958.1,0.4744]
[1761077897412,2.665707,3960.2,3958.1,0.4744]
[1761077897611,1.6701,3960.6,3958.6,2.52611039]
[1761077897612,4.182,3960.1,3958.6,2.52611039]
[1761077897939,4.182,3960.1,3958.1,0.4744]
[1761077897940,4.182,3960.1,3959.2,2.52572627]
[1761077898342,6.70720327,3960.1,3958.1,0.4744]
[1761077898546,4.2993,3960.1,3958.1,0.472]
[1761077898713,0.1173,3961.0,3958.2,0.025264]
[1761077898914,0.001,3962.8,3958.2,0.532144]
[1761077898915,1.904,3961.8,3958.2,0.532144]
[1761077899132,0.001,3962.0,3958.7,16.1138409]
[1761077899418,0.001,3962.0,3958.9,1.5552]
[1761077899624,0.001,3962.0,3960.9,2.52466837]
[1761077899825,0.001,3962.0,3961.0,2.52458839]
[1761077900026,0.001,3962.0,3961.1,0.02524551]
[1761077900242,0.001,3962.0,3961.2,2.5244564]
[1761077900444,2.5250049,3962.0,3959.9,2.73976953]
[1761077900651,0.001,3961.1,3959.9,0.2145]
[1761077900817,0.001,3961.1,3960.6,2.52485922]
[1761077901249,0.001,3961.1,3960.0,0.4385]
[1761077901415,0.001,3961.1,3960.5,2.52491023]
[1761077901626,0.001,3961.1,3960.0,0.4385]
[1761077901627,0.001,3961.1,3960.6,2.52485406]
[1761077901824,0.001,3961.1,3960.4,2.52498395]
[1761077902127,0.001,3961.1,3960.5,2.52489995]
[1761077902328,0.001,3961.1,3960.0,0.4385]
[1761077902524,0.001,3961.1,3960.1,2.5251292]
[1761077902850,0.001,3961.1,3960.3,2.52503762]
[1761077903026,0.1237,3961.3,3959.5,0.4385]
[1761077903228,0.1237,3961.3,3958.8,2.52599687]
[1761077903229,9.310928,3961.0,3958.6,0.4385]
[1761077903550,0.50688,3960.6,3958.6,0.4385]
[1761077903717,4.62228,3960.3,3959.0,2.52588733]
[1761077904022,3.03192355,3960.4,3957.9,2.52654952]
[1761077904023,6.67312524,3960.2,3958.9,2.52594208]
[1761077904356,4.148,3960.2,3958.3,0.4715]
[1761077904648,4.148,3960.2,3957.9,2.52654952]
[1761077904649,4.148,3960.2,3958.9,2.52590585]
[1761077904813,4.148,3960.2,3958.4,0.4715]
[1761077905014,4.148,3960.2,3959.2,2.52574522]
[1761077905215,4.148,3960.2,3958.4,0.4715]
[1761077905216,4.148,3960.2,3958.7,2.52603984]
[1761077905442,4.148,3960.2,3959.3,2.52564366]
[1761077905713,4.148,3960.2,3958.8,2.52601798]
[1761077905930,0.1237,3961.4,3959.0,2.52589037]
[1761077906264,4.135,3961.3,3958.8,4.132]
[1761077906437,4.135,3961.3,3959.8,2.52537214]
[1761077906438,3.03141393,3961.2,3959.8,2.52537214]
[1761077906639,0.63058,3961.2,3958.7,0.4715]
[1761077906844,11.058333,3961.0,3959.5,2.52552256]
[1761077907037,2.52486386,3960.7,3958.8,2.52601798]
[1761077907242,9.709436,3961.0,3958.9,2.99740531]
[1761077907437,7.34571,3960.9,3958.9,0.4715]
[1761077907643,2.52474247,3960.8,3959.5,2.52555555]
[1761077907860,2.52482752,3960.7,3959.5,2.52555555]
[1761077908065,3.240612,3960.8,3959.8,2.52534944]
[1761077908259,3.240612,3960.8,3958.9,0.4715]
[1761077908443,2.52492332,3960.6,3958.9,0.4715]
[1761077908759,2.52488283,3960.6,3959.5,2.52556232]
[1761077908961,1.5552,3961.2,3959.8,2.52532701]
[1761077909171,21.312445,3960.6,3958.6,2.52613299]
[1761077909380,0.50688,3960.3,3958.1,0.4715]
[1761077909532,0.50688,3959.9,3958.1,0.4715]
[1761077909884,4.2397,3960.2,3958.1,0.4715]
[1761077910085,0.50688,3959.3,3957.7,0.2293]
[1761077910239,2.52584019,3959.1,3957.8,2.52663843]
[1761077910437,4.661204,3959.0,3957.8,2.52663843]
[1761077910631,4.11,3959.2,3957.4,0.4715]
[1761077910855,2.5260061,3958.9,3957.5,2.5268169]
[1761077911363,4.11,3959.2,3956.7,2.52729614]
[1761077911364,2.52615172,3958.6,3956.7,0.4715]
[1761077911669,2.588415,3958.6,3957.3,2.52692225]
[1761077911871,2.588415,3958.6,3957.4,2.52688117]
[1761077912058,0.143,3958.8,3956.7,0.4715]
[1761077912255,2.66904008,3958.8,3956.7,0.4715]
[1761077912442,2.52620942,3958.5,3956.7,0.4715]
[1761077912646,0.50688,3959.1,3957.8,2.52660605]
[1761077912842,0.5267373,3959.1,3956.7,0.4715]
[1761077913048,4.11,3959.2,3957.0,2.52716704]
[1761077913257,4.11,3959.2,3957.6,2.52676857]
[1761077913471,4.11,3959.2,3958.3,2.52628597]
[1761077913666,4.11,3959.2,3957.7,0.2247]
[1761077913667,2.4839,3959.1,3957.7,0.2247]
[1761077913870,2.4839,3959.1,3958.0,2.52646953]
[1761077914041,2.4839,3959.1,3958.1,2.52640908]
[1761077914042,2.327806,3959.1,3958.1,2.52640908]
[1761077914370,2.327806,3959.1,3958.3,2.52631984]
[1761077914667,4.11,3959.2,3957.8,0.49676656]
[1761077914889,4.11,3959.2,3957.8,0.4715]
[1761077915074,4.11,3959.2,3958.7,2.52602749]
[1761077915272,4.11,3959.2,3957.8,0.4715]
[1761077915478,4.11,3959.2,3957.7,0.2247]
[1761077915479,4.11,3959.2,3958.7,2.5260737]
[1761077915692,4.11,3959.2,3958.1,2.52646471]
[1761077915898,4.11,3959.2,3958.7,2.526023]
[1761077916200,4.11,3959.2,3958.1,2.52646471]
[1761077916394,0.52914417,3959.1,3958.2,2.52637651]
[1761077916691,0.52914417,3959.1,3958.2,2.52634547]
[1761077916888,0.52914417,3959.1,3957.7,0.6962]
[1761077916889,0.52914417,3959.1,3958.3,2.5263294]
[1761077917396,0.52914417,3959.1,3958.4,2.52625849]
[1761077917597,0.52914417,3959.1,3958.2,2.5263993]
[1761077917758,0.52914417,3959.1,3958.8,2.52600934]
[1761077917964,4.11,3959.2,3958.9,2.52590657]
[1761077918165,12.08765,3959.0,3956.9,0.4715]
[1761077918373,12.08765,3959.0,3957.5,2.52679103]
[1761077918374,8.532471,3958.8,3957.5,2.52679103]
[1761077918582,0.52943619,3958.7,3957.1,0.2247]
[1761077918899,0.52943619,3958.7,3956.9,2.99868466]
[1761077918900,2.832,3958.7,3956.9,0.4715]
[1761077919061,0.71343619,3958.8,3956.9,0.4715]
[1761077919062,3.764771,3958.5,3957.4,2.52686147]
[1761077919395,4.61543619,3958.4,3957.2,2.52701097]
[1761077919564,0.52943619,3958.3,3957.2,2.52701097]
[1761077919763,0.52943619,3958.3,3958.0,0.002]
[1761077919996,4.086,3958.4,3958.0,0.002]
[1761077920162,0.5295401,3958.3,3958.0,0.002]
[1761077920361,0.7135401,3958.3,3958.0,0.002]
[1761077920570,4.086,3958.4,3958.0,0.002]
[1761077920859,0.71356533,3958.3,3958.0,0.002]
[1761077921393,0.184,3958.3,3958.0,0.002]
[1761077921595,0.71345418,3958.3,3958.0,0.002]
[1761077922089,3.05579816,3958.3,3958.0,0.002]
[1761077922261,0.184,3958.2,3958.0,0.002]
[1761077922462,2.52646471,3958.1,3958.0,0.002]
[1761077922700,0.52935143,3958.1,3958.0,0.002]
[1761077922906,0.184,3958.1,3958.0,0.002]
[1761077923059,4.09783,3958.1,3958.0,0.002]
[1761077923263,7.15233201,3958.1,3958.0,0.002]
[1761077923689,0.5293373,3958.1,3958.0,0.002]
[1761077924197,0.5293373,3958.3,3958.0,0.002]
[1761077924794,6.2858,3958.2,3958.0,0.002]
[1761077924961,10.57995101,3958.1,3958.0,0.002]
[1761077925163,2.06208,3958.0,3955.3,0.4715]
[1761077925493,2.06208,3958.0,3954.4,0.4715]
[1761077925494,16.1138409,3957.1,3954.4,0.4715]
[1761077925694,16.1138409,3957.1,3954.1,0.002]
[1761077925695,2.52791466,3955.9,3954.3,2.52883451]
[1761077925897,1.16749795,3956.7,3954.1,0.002]
[1761077925898,4.254522,3955.3,3954.1,0.002]
[1761077926196,4.068,3955.2,3954.1,0.002]
[1761077926568,6.59632119,3955.2,3954.1,0.002]
[1761077926766,4.068,3955.2,3954.1,0.002]
[1761077926963,2.5285083,3955.0,3954.1,0.002]
[1761077927201,6.79121751,3955.2,3954.1,0.002]
[1761077927368,2.93718633,3955.1,3954.1,0.002]
[1761077927698,0.4088,3955.1,3954.1,0.002]
[1761077928198,6.315488,3954.6,3954.1,0.002]
[1761077928409,7.49793,3954.6,3954.1,0.002]
[1761077928570,10.22153075,3954.6,3954.1,0.002]
[1761077928768,2.52882864,3954.4,3951.3,0.4715]
[1761077929086,0.2161,3952.9,3951.3,0.4715]
[1761077929263,4.2721,3952.9,3951.3,0.4715]
[1761077929594,7.91181,3952.9,3951.7,2.53053264]
[1761077929771,4.97188,3952.9,3951.6,2.53061543]
[1761077929973,10.102784,3952.9,3951.2,0.4715]
[1761077930593,4.056,3952.9,3951.7,2.53050132]
[1761077930775,4.056,3952.9,3951.7,2.53051915]
[1761077930976,4.2491,3952.9,3951.6,0.4715]
[1761077931173,4.056,3952.9,3951.6,0.4715]
[1761077931400,4.056,3952.9,3951.2,2.53086837]
[1761077931401,4.056,3952.9,3952.3,2.5301409]
[1761077931608,4.056,3952.9,3952.1,0.4715]
[1761077931810,4.056,3952.9,3951.5,0.4715]
[1761077932115,4.056,3952.9,3952.0,2.5303092]
[1761077932406,4.056,3952.9,3951.5,0.4715]
[1761077932761,4.053,3952.9,3952.3,2.53011487]
[1761077932965,4.053,3952.9,3952.0,2.53031653]
[1761077933563,4.053,3952.9,3951.5,3.00217709]
[1761077933765,4.053,3952.9,3951.5,0.4715]
[1761077934193,4.053,3952.9,3952.8,2.53285225]
[1761077934606,4.053,3952.9,3952.8,0.003]
[1761077934907,4.053,3952.9,3952.8,2.53285225]
[1761077935110,4.053,3952.9,3952.8,0.003]
[1761077937337,0.87671795,3955.6,3952.8,0.4467]
[1761077937537,4.012,3954.4,3952.8,0.4487]
[1761077937714,0.001,3952.9,3952.8,2.97852228]
[1761077939542,0.001,3952.9,3952.8,6.97852228]
[1761077939743,0.001,3953.3,3953.2,2.52959627]
[1761077940050,0.001,3953.3,3953.2,3.95489223]
[1761077940351,0.001,3953.3,3953.2,4.37329627]
[1761077941010,0.2161,3956.6,3953.3,2.52953228]
[1761077941213,0.607,3956.5,3953.8,16.1138409]
[1761077941416,0.66061795,3958.2,3953.8,16.1138409]
[1761077941417,2.52658497,3958.0,3954.1,10.11608204]
[1761077941620,0.2203,3958.5,3955.1,1.4]
[1761077941814,2.1699,3958.3,3955.4,2.52818931]
[1761077942026,3.993,3958.4,3955.3,1.5552]
[1761077942229,3.993,3958.4,3955.5,16.1138409]
[1761077942414,16.045375,3958.1,3956.2,2.52767774]
[1761077942757,1.5552,3958.2,3955.4,0.4437]
[1761077942758,8.32291302,3957.4,3956.0,2.52776375]
[1761077943044,2.06208,3958.2,3956.2,2.52767056]
[1761077943045,4.2093,3957.3,3956.2,2.52767056]
[1761077943349,3.988,3957.2,3956.3,0.02527614]
[1761077943641,0.39632126,3959.3,3955.8,2.52793366]
[1761077943642,3.986,3957.9,3955.8,2.52793366]
[1761077943842,3.986,3957.9,3955.8,0.4437]
[1761077944045,3.986,3957.9,3957.6,2.52673203]
[1761077944244,3.986,3957.9,3955.9,0.4437]
[1761077944245,3.986,3957.9,3957.8,2.52665622]
[1761077944452,0.188,3959.0,3957.1,0.2174]
[1761077944612,3.982,3958.5,3957.7,2.52666869]
[1761077944833,2.71394619,3959.0,3957.7,2.52666997]
[1761077945020,0.39632126,3959.3,3957.6,0.4437]
[1761077945021,9.125894,3959.3,3957.6,0.4437]
[1761077945225,14.585201,3959.1,3957.1,0.2174]
[1761077945465,0.50688,3958.6,3956.2,0.2174]
[1761077945676,3.03295797,3958.8,3956.2,0.2174]
[1761077945677,2.06208,3958.4,3956.2,0.2174]
[1761077945830,3.830432,3958.1,3956.3,0.4437]
[1761077946162,2.52685276,3957.5,3956.2,2.74507262]
[1761077946371,3.974,3957.5,3956.2,2.74507262]
[1761077946535,4.30142518,3958.4,3956.2,2.74507262]
[1761077946536,1.5552,3958.7,3957.3,2.52695346]
[1761077946739,7.003016,3958.7,3956.3,4.37125984]
[1761077946980,4.1956,3958.8,3957.3,2.52695053]
[1761077946981,3.501509,3958.5,3957.3,2.52695053]
[1761077947124,0.2153,3959.8,3957.5,2.52684775]
[1761077947326,1.8613,3959.8,3957.2,1.5552]
[1761077947676,0.39607551,3960.9,3959.7,2.52543549]
[1761077947857,7.417531,3961.0,3959.5,0.2174]
[1761077948058,7.417531,3961.0,3959.3,0.4437]
[1761077948059,0.1801,3960.9,3959.3,0.4437]
[1761077948245,16.751551,3961.1,3959.4,2.08635635]
[1761077948452,15.751551,3961.1,3959.4,1.6174]
[1761077948784,0.001,3962.0,3959.4,1.6174]
[1761077948785,0.39693785,3962.0,3959.6,2.52550762]
[1761077948926,0.001,3962.0,3959.9,2.52530647]
[1761077949124,0.001,3962.0,3959.7,0.02525443]
[1761077949125,0.001,3962.0,3961.0,2.52455448]
[1761077949363,0.001,3962.0,3961.1,0.02524551]
[1761077949564,0.001,3962.0,3960.0,0.2174]
[1761077949725,0.001,3962.0,3960.2,2.52512499]
[1761077949929,0.001,3962.0,3960.3,2.5250416]
[1761077950153,0.001,3962.0,3961.5,2.52426764]
[1761077950359,0.001,3962.0,3961.9,2.74144149]
[1761077950658,0.001,3962.0,3960.4,0.4437]
[1761077950861,0.001,3962.0,3961.6,2.52421466]
[1761077951048,0.001,3962.0,3961.9,2.74144149]
[1761077951361,0.001,3962.0,3960.9,0.4437]
[1761077951565,0.001,3962.0,3960.1,0.4437]
[1761077951762,0.001,3962.0,3961.7,2.52411524]
[1761077952057,0.001,3962.0,3961.9,2.52404149]
[1761077952476,0.001,3962.0,3961.9,2.9929819]
[1761077952770,0.001,3962.0,3961.9,4.3929819]
[1761077952935,2.52234838,3964.6,3961.9,4.3929819]
[1761077952936,1e-08,3962.8,3962.7,2.52353193]
[1761077953339,1e-08,3962.8,3962.7,2.96723193]
[1761077953566,1e-08,3962.8,3962.7,2.65353193]
[1761077953765,1e-08,3962.8,3962.7,4.49723193]
[1761077954069,1e-08,3962.8,3962.7,0.13]
[1761077954364,1e-08,3962.8,3962.7,2.96723193]
[1761077954556,1e-08,3962.8,3962.7,4.36723193]
[1761077955468,1e-08,3962.8,3962.7,2.52353193]
[1761077955670,1e-08,3962.8,3961.9,0.4437]
[1761077956043,1e-08,3962.8,3962.5,2.52365191]
[1761077956239,1e-08,3962.8,3962.2,2.52382853]
[1761077956545,1e-08,3962.8,3961.7,0.2174]
[1761077956870,1e-08,3962.8,3960.2,2.52509331]
[1761077956871,2.52361983,3962.6,3960.2,0.4437]
[1761077957168,0.001,3962.4,3960.4,2.52499747]
[1761077957370,0.001,3962.4,3960.2,1.8437]
[1761077957535,0.001,3962.4,3960.5,2.52493372]
[1761077957736,0.001,3962.4,3961.7,2.52416313]
[1761077957948,0.001,3962.4,3961.9,2.52403957]
[1761077958366,0.001,3962.4,3962.0,2.52397761]
[1761077958566,0.001,3962.4,3961.1,0.46894551]
[1761077958567,0.001,3962.4,3961.4,2.52436007]
[1761077958873,0.001,3962.4,3962.1,2.52386078]
[1761077959055,0.001,3962.4,3962.3,2.52378668]
[1761077959967,0.001,3962.4,3962.3,2.96198668]
[1761077960895,0.001,3962.4,3962.3,4.51718668]
[1761077961253,0.3955529,3966.3,3962.8,0.50688]
[1761077961554,0.35223972,3968.0,3963.2,0.50688]
[1761077961555,0.2282,3967.1,3963.2,0.50688]
[1761077961756,0.62295893,3967.3,3965.6,2.52164262]
[1761077961995,0.2275,3967.3,3965.5,2.52175009]
[1761077962192,2.74810884,3967.3,3965.8,2.5215353]
[1761077962407,0.62357431,3967.8,3965.4,0.2343]
[1761077962691,0.1486,3967.4,3965.5,0.4382]
[1761077963065,2.52017124,3968.0,3966.3,2.52124145]
[1761077963264,0.3715,3966.4,3964.8,0.2343]
[1761077963778,0.001,3966.4,3965.0,2.52206809]
[1761077963952,0.001,3966.4,3966.3,2.52124145]
[1761077964357,0.001,3966.4,3966.2,2.52128988]
[1761077964555,0.001,3966.4,3966.3,2.52124145]
[1761077964858,4.4998,3966.4,3964.7,2.52225721]
[1761077965259,4.4998,3966.4,3961.9,0.2343]
[1761077965260,2.52137926,3966.1,3961.9,0.2343]
[1761077965593,4.231,3966.0,3964.6,2.52229098]
[1761077965795,4.7201,3966.0,3964.4,2.52239093]
[1761077965992,0.2541,3965.9,3964.5,2.52233051]
[1761077966197,2.77561151,3965.9,3964.5,2.52233051]
[1761077966497,5.817563,3968.5,3964.8,2.52218168]
[1761077966786,3.508363,3967.6,3964.8,2.52219531]
[1761077966956,9.29122,3967.4,3965.4,2.5217648]
[1761077967156,9.29122,3967.4,3964.9,0.467]
[1761077967394,4.275,3967.5,3964.5,1.5552]
[1761077967395,5.26105,3967.0,3964.5,1.5552]
[1761077967574,2.41286,3967.2,3965.5,2.5216894]
[1761077967773,4.93353485,3967.2,3965.5,2.5216894]
[1761077968019,2.52079657,3967.0,3965.5,2.5216894]
[1761077968233,6.86637231,3966.9,3965.5,2.52174741]
[1761077968524,4.07613168,3966.8,3965.1,2.52200017]
[1761077968830,0.50688,3966.4,3965.1,2.52199076]
[1761077968971,3.926708,3966.1,3964.1,2.5226407]
[1761077969310,4.262,3966.0,3964.5,2.52232506]
[1761077969503,4.262,3966.0,3964.6,2.52232142]
[1761077969675,4.262,3966.0,3964.1,0.467]
[1761077969676,0.1924,3965.9,3964.3,2.52249339]
[1761077969874,6.043106,3965.8,3964.5,2.52232742]
[1761077970076,6.043106,3965.8,3964.2,2.5225641]
[1761077970408,6.043106,3965.8,3962.9,2.52337332]
[1761077970409,6.281355,3965.8,3964.1,2.5225784]
[1761077970571,5.89076,3965.4,3964.2,2.52257428]
[1761077970772,0.50688,3965.7,3963.2,0.7013]
[1761077970973,0.1924,3965.9,3964.3,2.52251079]
[1761077970974,4.163014,3965.4,3964.3,2.52251079]
[1761077971413,4.163014,3965.2,3963.3,0.467]
[1761077971571,4.323014,3965.4,3964.1,2.52258856]
[1761077971905,4.323014,3965.4,3963.3,0.467]
[1761077971906,3.65078,3965.4,3963.5,2.52302258]
[1761077972207,3.65078,3965.4,3964.2,2.52254553]
[1761077972410,3.65078,3965.4,3963.9,2.52275289]
[1761077972577,3.65078,3965.4,3963.9,2.52271449]
[1761077972773,6.17260361,3965.4,3964.1,2.5226291]
[1761077973112,6.19793766,3965.4,3963.4,2.52308623]
[1761077973411,3.02877038,3965.3,3962.4,0.467]
[1761077973724,2.52156583,3965.8,3962.5,0.467]
[1761077973725,12.973787,3964.9,3962.5,0.467]
[1761077973928,4.229,3964.8,3962.5,0.467]
[1761077974212,4.227,3964.7,3962.5,0.467]
[1761077974612,0.2276,3964.6,3963.6,2.52294579]
[1761077974769,0.2276,3964.6,3962.5,0.467]
[1761077974981,0.2276,3964.6,3962.6,0.467]
[1761077975182,4.788586,3964.5,3962.3,0.002]
[1761077975421,4.788586,3964.5,3962.4,2.52372299]
[1761077975711,4.788586,3964.5,3962.3,0.002]
[1761077975712,0.50688,3964.5,3962.3,0.002]
[1761077975918,2.625307,3964.4,3963.4,2.52308306]
[1761077976110,2.625307,3964.3,3962.6,2.52356281]
[1761077976285,2.625307,3964.3,3963.3,2.52313779]
[1761077976480,0.2276,3964.6,3962.3,0.002]
[1761077976797,4.207,3964.5,3963.4,2.52308468]
[1761077977108,4.203,3964.4,3964.0,2.52265819]
[1761077977409,4.203,3964.4,3963.9,2.52275017]
[1761077977629,4.203,3964.4,3963.0,2.5233409]
[1761077978012,4.203,3964.4,3963.8,2.52281685]
[1761077978205,4.203,3964.4,3963.9,2.52276268]
[1761077978403,4.203,3964.4,3963.9,2.52275855]
[1761077978623,4.203,3964.4,3964.1,2.52259564]
[1761077978790,4.203,3964.4,3963.3,0.2307]
[1761077978791,0.2276,3964.6,3963.3,0.2307]
[1761077979001,4.193,3964.5,3964.3,2.52249572]
[1761077979184,0.001,3965.4,3964.7,2.52225358]
[1761077979385,0.001,3965.4,3965.0,2.52206118]
[1761077979584,4.185,3965.3,3965.0,2.52205311]
[1761077979790,4.185,3965.3,3964.5,0.2307]
[1761077980100,4.185,3965.3,3965.0,2.5220174]
[1761077980294,4.185,3965.3,3963.4,2.52308343]
[1761077980618,4.185,3965.3,3963.3,0.6977]
[1761077980619,0.52807099,3965.2,3964.3,2.52246255]
[1761077980793,4.179,3965.2,3964.3,2.52246255]
[1761077981203,4.179,3965.2,3964.1,2.52258864]
[1761077981405,4.179,3965.2,3963.5,0.467]
[1761077981406,4.179,3965.2,3964.2,2.52251599]
[1761077981604,6.7009518,3965.2,3964.2,2.52251599]
[1761077981803,4.179,3965.2,3964.5,2.52236882]
[1761077982317,4.179,3965.2,3963.5,0.467]
[1761077982524,2.52193412,3965.3,3964.1,2.52262302]
[1761077982724,4.163,3965.1,3963.5,0.467]
[1761077982925,4.163,3965.1,3963.3,0.2307]
[1761077982926,0.001,3965.4,3963.6,0.467]
[1761077983133,4.161,3965.3,3963.7,2.52289527]
[1761077983295,4.161,3965.3,3964.2,2.52257038]
[1761077983296,0.52848205,3965.2,3964.2,2.52257038]
[1761077983492,4.161,3965.1,3964.2,2.52257038]
[1761077983722,4.161,3965.1,3964.4,2.52239786]
[1761077984237,0.001,3965.4,3963.6,0.467]
[1761077984395,4.154,3965.3,3964.7,2.52220929]
[1761077984594,4.154,3965.3,3964.6,2.52232025]
[1761077984826,4.147,3965.2,3965.0,2.52205228]
[1761077985027,4.147,3965.2,3965.1,2.52200448]
[1761077985233,0.001,3965.4,3965.1,2.52200448]
[1761077985533,0.001,3965.4,3964.9,2.52209971]
[1761077985534,0.001,3965.4,3965.2,2.52193279]
[1761077985694,4.143,3965.3,3963.8,0.467]
[1761077986152,4.143,3965.3,3964.6,2.52230631]
[1761077986404,4.143,3965.3,3964.5,2.5223803]
[1761077986723,4.143,3965.3,3964.1,2.5226407]
[1761077987042,0.001,3965.4,3964.7,2.52221414]
[1761077987199,4.134,3965.3,3964.8,2.52219194]
[1761077987398,4.134,3965.3,3964.1,2.5226407]
[1761077987399,0.001,3965.4,3964.6,2.52231113]
[1761077987599,4.132,3965.3,3964.2,2.52252447]
[1761077987812,4.132,3965.3,3963.9,0.467]
[1761077988017,4.132,3965.3,3964.5,2.52236533]
[1761077988217,0.001,3965.4,3964.5,2.52236533]
[1761077988414,4.123,3965.3,3964.0,2.52270433]
[1761077988620,0.001,3965.4,3964.7,2.52224416]
[1761077988830,4.123,3965.3,3964.4,2.52239597]
[1761077989103,0.2276,3964.5,3962.4,4.588]
[1761077989305,0.2276,3964.5,3962.9,0.2307]
[1761077989609,4.116,3964.4,3963.6,2.52295169]
[1761077989817,0.52888139,3964.3,3963.6,2.52295169]
[1761077990360,2.5227623,3964.0,3961.9,0.7033]
[1761077990563,2.5228321,3963.8,3962.7,2.52347473]
[1761077990718,0.52888139,3963.7,3961.9,0.7033]
[1761077990919,4.118,3963.6,3962.8,2.52342835]
[1761077991250,4.114,3963.5,3963.0,2.52328827]
[1761077991625,4.114,3963.5,3962.0,2.52391925]
[1761077991828,4.114,3963.5,3962.8,2.52344757]
[1761077992058,0.6592267,3964.1,3963.2,2.5232063]
[1761077992260,0.52894115,3964.0,3962.6,0.02523595]
[1761077992425,0.52894115,3964.0,3961.9,0.2363]
[1761077992426,4.106,3964.8,3962.7,0.467]
[1761077992629,0.52905396,3964.7,3963.7,2.52288222]
[1761077992835,0.52905396,3964.7,3962.8,2.52346825]
[1761077993060,0.52905396,3964.7,3963.1,2.52327723]
[1761077993373,0.52905396,3964.7,3962.9,0.467]
[1761077993374,0.52905396,3964.7,3963.8,2.52282274]
[1761077993539,0.52905396,3964.7,3963.6,0.002]
[1761077993540,4.105,3964.6,3963.6,0.002]
[1761077993854,0.52905396,3964.5,3963.6,0.002]
[1761077994067,0.52905396,3964.5,3964.2,2.52252817]
[1761077994238,4.1,3964.4,3963.7,2.52289527]
[1761077994446,0.87661217,3965.3,3963.6,0.02722958]
[1761077994447,3.18123134,3965.1,3964.2,2.52254483]
[1761077994765,3.18135964,3964.9,3963.6,0.002]
[1761077995061,0.52956189,3964.8,3964.1,2.52259163]
[1761077995359,0.52956189,3964.7,3964.2,2.52257658]
[1761077995558,4.092,3964.6,3964.1,2.52263136]
[1761077995758,0.52956189,3964.5,3963.6,0.002]
[1761077996130,0.52956189,3964.5,3964.1,2.52258573]
[1761077996460,0.52956189,3964.5,3964.2,2.52257509]
[1761077996660,4.092,3964.4,3964.1,2.52262623]